Cogmind - Beta 14 @@@ ROGUE MODE // 2024.11.14 @ 15:16:25 Player: Fangrelle Result: Destroyed by S-10 Pest with Light Assault Rifle Performance ------------- Evolutions (1) 500 Regions Visited (2) 400 Robots Destroyed (21) 105 Value Destroyed (433) 433 Prototype IDs (1) 20 Alien Tech Used (0) 0 Bonus (-49) -49 TOTAL SCORE: 1409 Bonus ------- Friendly Fire -49 Cogmind --------- Core Integrity 0/400 Matter 271/300 Energy 100/100 System Corruption 0% Temperature Cool (0) Movement Core (700) Ox13 Location -9/Materials Parts ------- > --- POWER (1) -------- (None) > --- PROPULSION (2) --- (None) > --- UTILITY (3) ------ High-capacity Storage Unit > --- WEAPON (3) ------- (None) > --- INVENTORY (20) --- Light Treads Compact Wheel High-capacity Matter Pod (200) Peak State ------------ > --- POWER ------------ Ion Engine > --- PROPULSION ------- Light Treads Light Treads > --- UTILITY ---------- Improved Heat Sink High-capacity Storage Unit > --- WEAPON ----------- EM Pulse Gun Improved EM Shotgun Particle Gun > --- INVENTORY -------- Ion Engine Light Treads Light Treads Wheel Compact Wheel High-capacity Matter Pod [Rating: 13] Favorites ----------- Power Ion Engine Engine Ion Engine Propulsion Light Treads Treads Light Treads Leg Aluminum Leg Wheel Wheel Utility Small Storage Unit Device Improved Heat Sink Storage Small Storage Unit Weapon Light Assault Rifle Energy Gun EM Pulse Gun Ballistic Gun Light Assault Rifle Build | -11 -10 -9 ------- Run | Yrd Mat Mat Slots Evolved 2 | . . 2 Power . | . . . Propulsion . | . . . Utility 1 | . . 1 Weapon 1 | . . 1 Parts Attached 29 | . 11 18 Power 3 | . 2 1 Engine 3 | . 2 1 Core . | . . . Reactor . | . . . Propulsion 12 | . 3 9 Treads 5 | . 3 2 Leg 5 | . . 5 Wheel 2 | . . 2 Hover . | . . . Flight . | . . . Utility 4 | . . 4 Device 3 | . . 3 Storage 1 | . . 1 Processor . | . . . Hackware . | . . . Protection . | . . . Artifact . | . . . Weapon 10 | . 6 4 Energy Gun 7 | . 4 3 Energy Cannon . | . . . Ballistic Gun 3 | . 2 1 Ballistic Cannon . | . . . Launcher . | . . . Special Weapon . | . . . Impact Weapon . | . . . Slashing Weapon . | . . . Piercing Weapon . | . . . Special Melee Weapon . | . . . Unidentified Prototypes 1 | . . 1 Parts Lost 18 | . 5 13 Power 2 | . . 2 Propulsion 7 | . 1 6 Utility 2 | . . 2 Weapon 7 | . 4 3 Highest Loss Streak 7 | . 3 7 To Critical Strikes 1 | . . 1 Average Slot Usage (%) 75 | . 79 65 Engine 11 | . 14 5 Treads 19 | . 22 13 Leg 4 | . 5 3 Device 3 | . . 10 Storage 13 | . 14 11 Energy Gun 8 | . 7 12 Ballistic Gun 13 | . 15 6 Peak Build Rating 13 | . 6 13 Average Rating 6 | . 5 8 On Entrance 6 | 6 6 6 Naked Turns . | . . . Heaviest Build 57 | 11 14 57 Greatest Support 40 | 20 40 40 Greatest Overweight (x) 14 | . . 14 Average Overweight (x) . | . . 1 Largest Inventory Capacity 20 | . 8 20 Average Capacity 11 | . 8 18 Most Carried 8 | . 8 7 Average Carried 6 | . 7 4 Final Capacity 20 | 8 8 20 Final Carried 8 | 6 8 3 Class Distribution -------------------- 86% | Mutant 10% | Scavenger-Gunner 3% | Scavenger-Mutant Dominant Class ---------------- Mutant | -10/Materials Mutant | -9/Materials Resources | -11 -10 -9 ----------- Run | Yrd Mat Mat Matter Collected 713 | 200 403 110 Remotely . | . . . Salvage Created 600 | . 475 125 Parts 46 | . 38 8 Haulers Intercepted 1 | . 1 . Recyclers Shooed . | . . . Parts Field Recycled . | . . . Retrieved Matter . | . . . Parts Self-Destructed . | . . . Prevented . | . . . Kills | -11 -10 -9 ------- Run | Yrd Mat Mat Combat Hostiles Destroyed 14 | . 9 5 Guns 11 | . 7 4 AOE 2 | . 2 . Classes Destroyed 6 | . 6 . Builder 3 | . 3 . Hauler 1 | . 1 . Operator 1 | . 1 . Watcher 2 | . 2 . Swarmer 6 | . 3 3 Grunt 8 | . 6 2 Best Kill Streak 6 | . 6 4 Combat Bots Only 4 | . 3 4 Max Kills in Single Turn 2 | . 2 1 Gunslinging . | . . . Exploded 1 | . 1 . Melee . | . . . Uniques/NPCs Destroyed . | . . . Combat | -11 -10 -9 -------- Run | Yrd Mat Mat Hostile Shots Fired 277 | . 67 210 Missed 71 | . 13 58 Damage Taken 2126 | . 745 1381 Core 512 | . 105 407 Absorbed by Shields . | . . . Core Remaining (%) 79 | 100 58 . Volleys Fired 89 | . 55 34 Largest 2 | . 2 2 Hottest 105 | . 80 105 Shots Fired 140 | . 96 44 Gun 140 | . 96 44 Cannon . | . . . Launcher . | . . . Special . | . . . Kinetic 87 | . 65 22 Thermal 15 | . . 15 Explosive . | . . . Electromagnetic 38 | . 31 7 Robot Hit Streak 11 | . 10 11 Robot Miss Streak 7 | . 7 4 Penetration Max . | . . . Secondary Targets 3 | . 3 . Max Gunslinging Chain 1 | . 1 . Shots Hit Robots 75 | . 52 23 Core Hits 29 | . 24 5 Critical Kills . | . . . Critical Parts Destroyed 1 | . 1 . Critical Strikes 5 | . 2 3 Burn 2 | . . 2 Destroy 1 | . 1 . Corrupt 2 | . 1 1 Melee Attacks . | . . . Impact . | . . . Slashing . | . . . Piercing . | . . . Sneak Attacks . | . . . Combat Hostiles . | . . . Follow-up Attacks . | . . . Damage Inflicted 1197 | . 901 296 Guns 934 | . 644 290 Cannons . | . . . Explosions 256 | . 256 . Melee . | . . . Ramming 7 | . 1 6 Kinetic 438 | . 364 74 Thermal 432 | . 256 176 Explosive . | . . . Electromagnetic 320 | . 280 40 Impact . | . . . Slashing . | . . . Piercing . | . . . Highest Corruption 1 | . 1 . Average Corruption 1 | . 1 . Corruption Purged . | . . . Corruption Blocked . | . . . Effects 1 | . 1 . Data Loss (minor) 1 | . 1 . Overload Shots . | . . . Overflow Damage 1 | . 1 . Projectiles . | . . . Explosions 1 | . 1 . Melee . | . . . Knockbacks . | . . . Impact . | . . . Kinetic . | . . . Secondary . | . . . Self-Inflicted Damage . | . . . Shots . | . . . Rammed 1 | . . 1 Targets Rammed 4 | . 1 3 Kicked 3 | . 1 2 Crushed . | . . . Highest Temperature 331 | . 159 331 Average Temperature 59 | . 60 59 Received Heat Transfer 597 | . 396 201 Siege Activations . | . . . Robots Corrupted 1 | . . 1 Combat Hostiles 1 | . . 1 Parts Fried . | . . . Impact Corruptions 1 | . . 1 Robots Melted . | . . . Combat Hostiles . | . . . Parts Melted 2 | . . 2 Heat Transferred 805 | . 250 555 Parts Sabotaged . | . . . Parts Stolen . | . . . Parts Stripped . | . . . Power Chain Reactions 2 | . 2 . Alert | -11 -10 -9 ------- Run | Yrd Mat Mat Peak Influence 254 | . 254 173 Initial 13 | . . 13 Average 95 | . 109 62 Maximum Alert Level 1 | . 1 . Low Security (%) 85 | . 79 100 Level 1 14 | . 20 . Level 2 . | . . . Level 3 . | . . . Level 4 . | . . . Level 5 . | . . . High Security . | . . . Max Security . | . . . Squads Dispatched . | . . . Investigation . | . . . Extermination . | . . . Reinforcement . | . . . Assault . | . . . Garrison . | . . . Intercept . | . . . Searches Triggered . | . . . Construction Impeded . | . . . Haulers Reinforced . | . . . Active Scanning Responses . | . . . Cargo Convoy Interrupts . | . . . Stealth | -11 -10 -9 --------- Run | Yrd Mat Mat Distress Signals 4 | . 1 3 Communications Jammed . | . . . Distress Signals . | . . . Times Spotted 37 | . 19 18 Peak Tracking Total 9 | . 4 9 Tactical Retreats 7 | . 2 5 Traps | -11 -10 -9 ------- Run | Yrd Mat Mat Traps Triggered 3 | . 3 . Indirectly . | . . . Trap Hack Attempts . | . . . Triggered . | . . . Disarmed . | . . . Reprogrammed . | . . . Reused . | . . . Traps Extracted . | . . . Installed . | . . . Triggered . | . . . Machines | -11 -10 -9 ---------- Run | Yrd Mat Mat Machines Disabled . | . . . Max in Single Turn . | . . . Machines Repaired . | . . . Machines Dismantled . | . . . Machines Sabotaged . | . . . Overloaded Fab Kills . | . . . Hacking | -11 -10 -9 --------- Run | Yrd Mat Mat Machines Accessed 7 | . 7 . Terminals 7 | . 7 . Fabricators . | . . . Repair Stations . | . . . Recycling Units . | . . . Scanalyzers . | . . . Garrison Access . | . . . Total Hacks 24 | . 24 . Successful 15 | . 15 . Failed 9 | . 9 . Catastrophic . | . . . Database Lockouts . | . . . Manual 24 | . 24 . Terminals 24 | . 24 . Fabricators . | . . . Repair Stations . | . . . Recycling Units . | . . . Scanalyzers . | . . . Garrison Access . | . . . Terminal Hacks . | . . . Fabricator Hacks . | . . . Repair Station Hacks . | . . . Recycling Unit Hacks . | . . . Scanalyzer . | . . . Garrison Access Hacks . | . . . Unauthorized Hacks 15 | . 15 . Terminals 15 | . 15 . Assimilate 4 | . 4 . Botnet 7 | . 7 . Operators 2 | . 2 . Skim 2 | . 2 . Fabricators . | . . . Repair Stations . | . . . Recycling Units . | . . . Scanalyzers . | . . . Garrison Access . | . . . Data Cores Recovered . | . . . Used . | . . . Hacking Detections 7 | . 7 . Full Trace Events . | . . . Feedback Events . | . . . Feedback Blocked . | . . . Robot Schematics Acquired . | . . . Robots Built . | . . . Authchips . | . . . Time . | . . . Total Robot Build Rating . | . . . Part Schematics Acquired . | . . . Parts Built . | . . . Authchips . | . . . Time . | . . . Total Part Build Rating . | . . . Parts Repaired . | . . . Time . | . . . Parts Recycled . | . . . Recycled Matter . | . . . Retrieved Matter . | . . . Retrieved Components . | . . . Parts Scanalyzed . | . . . Part Schematics Acquired . | . . . Parts Damaged . | . . . Bothacking | -11 -10 -9 ------------ Run | Yrd Mat Mat Used RIF Installer . | . . . Robots Hacked . | . . . Non-combat . | . . . Combat . | . . . Robot Hacks Applied . | . . . Relay Couplers Released . | . . . Fabnet Peak Effective % . | . . . Robots Rewired . | . . . Allies Hacked . | . . . Hacks Repelled . | . . . Allies | -11 -10 -9 -------- Run | Yrd Mat Mat Total Allies 1 | . 1 . Largest Group 1 | . 1 . Highest-Rated Group 10 | . 10 . Highest-Rated Ally 10 | . 10 . Total Orders . | . . . Ally Attacks . | . . . Total Damage . | . . . Kills . | . . . Allies Corrupted . | . . . Allies Melted . | . . . Intel | -11 -10 -9 ------- Run | Yrd Mat Mat Robot Analysis Total . | . . . Derelict Logs Recovered . | . . . Drone Launches . | . . . Drone Recoveries . | . . . Exploration | -11 -10 -9 ------------- Run | Yrd Mat Mat Turns Passed 1395 | . 974 421 Spaces Moved 643 | 1 521 121 Core 5 | . . 5 Treads 518 | . 425 93 Legs 118 | 1 96 21 Wheels 2 | . . 2 Hover . | . . . Flight . | . . . Fastest Speed 120 | 120 120 140 Average Speed 172 | 120 152 255 Slowest Speed 750 | 120 160 750 Overloaded Moves . | . . . Propulsion Burnouts . | . . . Robots Hopped . | . . . Cave-ins Triggered . | . . . Exploration Rate (%) 36 | 2 95 12 Regions Visited 2 Branch Regions . Pre-discovered Areas . | . . . Known Exits Taken . | . . . Unknown Exits Taken 2 | 1 1 . Scrap Searched . | . . . Spaces Dug . | . . . Terrain Destroyed 7 | . 7 . Melee . | . . . Projectile . | . . . AOE 7 | . 7 . Terrain Rammed . | . . . Walls Destroyed . | . . . Machines Disabled . | . . . Actions | -11 -10 -9 --------- Run | Yrd Mat Mat Total 790 | . 609 181 Wait 14 | . 13 1 Move 641 | . 520 121 Hop . | . . . Pick Up 4 | . 4 . Fast Attach 12 | . 5 7 Attach 9 | . 3 6 Detach . | . . . Swap 8 | . 3 5 Drop 9 | . 5 4 Fire 89 | . 55 34 Melee . | . . . Ram . | . . . Kick 3 | . 1 2 Crush 1 | . . 1 Escape Stasis . | . . . Rewire . | . . . Trap . | . . . Miscellaneous . | . . . Route ------- -11/Scrapyard -10/Materials (discovered 4 exits: [*Mat x3] / [*Min]) -9/Materials (discovered 1 exit: [*Sto]) History --------- Turn | Location | Event 1 | -11/Scrapyard | Discovered new exit (range 0) 1 | -11/Scrapyard | Entered Materials 134 | -10/Materials | Discovered new exit (range 16) 221 | -10/Materials | Lost 3 parts (1n2w) 307 | -10/Materials | Build established: Mutant 410 | -10/Materials | Discovered new exit (range 9) 563 | -10/Materials | Discovered new exit (range 12) 760 | -10/Materials | Discovered new exit (range 14) 975 | -10/Materials | Entered another Materials area 975 | -9/Materials | Evolved 2 slots: Utility x1, Weapon x1 977 | -9/Materials | Discovered new exit (range 16) 1272 | -9/Materials | Lost 7 parts (2p3n2w) 1284 | -9/Materials | Core integrity fell below 50% 1338 | -9/Materials | Lost 3 parts (1n1u1w) 1361 | -9/Materials | Core integrity fell below 20% 1396 | -9/Materials | Destroyed by S-10 Pest with Light Assault Rifle Last Messages --------------- 01254_ Acquired 1 matter. 01287_ Imp. Heat Sink destroyed. 01288_ W-16 Scout sends out distress signal. 01301_ Wheel destroyed. 01305_ Slammed into S-10 Pest. 01305_ Destroyed Flight Unit. 01305_ S-10 Pest system corrupted by crushing effect. 01306_ S-10 Pest system terminally corrupted. 01307_ Lgt. Assault Rifle destroyed. 01308_ Acquired 14 matter. 01315_ Acquired Imp. Heat Sink. 01335_ R-06 Scavenger collects Faulty Imp. EM Shotgun. 01339_ R-06 Scavenger collects Lgt. Assault Rifle. 01355_ Critical hit (Destroy). 01355_ Aluminum Leg destroyed. 01368_ Kicked S-10 Pest. 01372_ Kicked S-10 Pest out of the way. 01372_ W-16 Scout sends out distress signal. 01375_ Aluminum Leg destroyed. 01391_ Imp. Heat Sink destroyed. Map ----- +----------------------------------------------------+ | ?????????????????????????????????????# #?? | | ?????????????????????###############?# #?? | | ?????????????????????# !! # #?# #?? | | ?????????????????????#!!! # """ #?# #?? | | ?????????????????????#!!! # """ #?# #?? | | ?????????????????????# # """ #?# ???? | | ?????????????????????# # #?# ?????? | | ?????????????????????# #? ??# ???????? | | ????????#################+######+######+####?????? | | ????????? #?????? | | ??????????????# #?????? | | ??????????????# #?????? | | ??????????????####/######+############# #?????? | | ???????????????# ## ^ #????????# #?????? | | ???????????????# ## ! #????????# #?????? | | ???????????????# ## #????????# #?????? | | ???????????????# ## #????????# #?????? | | ???????????????# ## #????????# #?????? | | ???????????????# ## #????????# #?????? | | ???????????????# #########????????# #?????? | | ???????????????##+####??????########### #?????? | | ????????????????# #?????????# ? # ?????? | | ????????????????# #?????????# """"" # ?????? | | ????????????????# #?????????# """"" + ?????? | | ????????????????# ########### """"" # < ?????? | | ????????????????# @ s """"" #? ?????? | | ????????????????# ########### """"" #???????????? | | ????????????????# #?????????# """"" #???????????? | | ????????????????# #?????????# """"" #???????????? | | ????????????????# #?????????# #???????????? | | ????????????????# #?????????#######+##???????????? | | ????????????????# #???????????????#=#????????????? | | ????????????????# #???????????????# #????????????? | | ????????????????# #??????????????##/####?????????? | | ????????????????# #??????????????#%% ==#?????????? | | ????????????????? ???????????????# """ #?????????? | | ????????????????? ???????????????#!""" #?????????? | | ????????????????? ???????????????# """ #?????????? | | ????????????????? ???????????????# """ #?????????? | | ????????????????? ???????????????# """ +?????????? | | ????????????????? ???????????????# # ????????? | | ????????????????? ???????????????####### ???????? | | ?????????????????????????????????????????????????? | | ?????????????????????????????????????????????????? | | ?????????????????????????????????????????????????? | | ?????????????????????????????????????????????????? | | ?????????????????????????????????????????????????? | | ?????????????????????????????????????????????????? | | ?????????????????????????????????????????????????? | | ?????????????????????????????????????????????????? | +----------------------------------------------------+ Best States ------------- Heat Dissipation 42 Energy Generation 10 Energy Capacity 250 Matter Stores 300 Matter Capacity 300 Sight Range 16 Terrain Scan Density 10 Evasion (%) 55 Recoil Reduction 2 Item Schematics ----------------- None Robot Schematics ------------------ None Fabricated ------------ Nothing Alien Tech Used ----------------- None Achievements -------------- None Challenges ------------ None Game ------ Seed CarbideBottomlessArray Manual? 0 Play Time 00:11:47 Cumulative 74.3 hours Start 2024.11.14 @ 15:02:25 End 2024.11.14 @ 15:16:25 Sessions 3 Manual Loads 0 Difficulty Rogue Special Mode None Game No. 128 Rogue 128 Adventurer 0 Explorer 0 Win Type - Total 0 Types 0/0/0/0/0/0/0/0/0 Lore% 41 Gallery% 35 Achievement% 34 Wizard Run 0 Options --------- Layout 0 ASCII 0 Keyboard 0 Movement Mouse Keybinds 0 Fullscreen 1 Font 24/Smallcaps Map View 91x25 Zoom Use 93% Tactical HUD 1 Map Filters NONE Filters NONE Steam 1 RUN: 466d7d9e-335c-4976-9a59-8d050665580f